lending/lending_fUSD_20250719
["ID","MTS","AMOUNT","RATE_DAILY","PERIOD"]
[373353548,1752964238190,-1416.91312689,0.00018898,2]
[373353550,1752964238199,-9525.8094,0.00018899,2]
[373353552,1752964238209,-265.5229,0.00018899,2]
[373353554,1752964238218,-5671.5325,0.00018899,2]
[373353556,1752964238228,-157.200894,0.00018899,2]
[373353558,1752964238240,-187.19350383,0.00018899,2]
[373353561,1752964238249,-1416.91312689,0.00018899,2]
[373353563,1752964238258,-1559.10685237,0.00018899,2]
[373353565,1752964238267,-556.21153512,0.00018899,2]
[373353567,1752964238276,-7635.80763355,0.00018899,2]
[373353569,1752964238285,-12500.0,0.000189,2]
[373353571,1752964238295,-200.0,0.00018904,2]
[373353573,1752964238308,-1000.0,0.00018904,2]
[373353574,1752964238317,-1000.0,0.00018904,2]
[373353576,1752964238327,-1000.0,0.00018904,2]
[373353578,1752964238336,-1000.0,0.00018904,2]
[373353580,1752964238348,-1000.0,0.00018904,2]
[373353583,1752964238358,-1000.0,0.00018904,2]
[373353584,1752964238368,-1000.0,0.00018904,2]
[373353586,1752964238379,-1000.0,0.00018904,2]
[373353589,1752964238389,-1000.0,0.00018904,2]
[373353591,1752964238399,-1000.0,0.00018904,2]
[373353592,1752964238408,-1000.0,0.00018904,2]
[373353594,1752964238417,-1000.0,0.00018904,2]
[373353596,1752964238426,-1000.0,0.00018904,2]
[373353598,1752964238435,-1000.0,0.00018904,2]
[373353600,1752964238444,-1000.0,0.00018904,2]
[373353602,1752964238455,-1000.0,0.00018904,2]
[373353605,1752964238466,-1000.0,0.00018904,2]
[373353606,1752964238475,-1000.0,0.00018904,2]
[373353609,1752964238485,-1000.0,0.00018904,2]
[373353610,1752964238494,-1000.0,0.00018904,2]
[373353612,1752964238503,-1000.0,0.00018904,2]
[373353614,1752964238512,-202.3189,0.00018904,2]
[373353616,1752964238521,-1000.0,0.00018904,2]
[373353618,1752964238531,-1000.0,0.00018904,2]
[373353620,1752964238540,-1000.0,0.00018904,2]
[373353622,1752964238549,-1000.0,0.00018904,2]
[373353625,1752964238560,-1000.0,0.00018904,2]
[373353627,1752964238568,-1000.0,0.00018904,2]
[373353629,1752964238577,-1000.0,0.00018904,2]
[373353631,1752964238587,-1000.0,0.00018904,2]
[373353633,1752964238596,-1000.0,0.00018904,2]
[373353635,1752964238606,-1000.0,0.00018904,2]
[373353637,1752964238615,-1000.0,0.00018904,2]
[373353639,1752964238624,-1000.0,0.00018904,2]
[373353641,1752964238633,-1000.0,0.00018904,2]
[373353642,1752964238642,-1000.0,0.00018904,2]
[373353644,1752964238651,-1000.0,0.00018904,2]
[373353646,1752964238660,-1000.0,0.00018904,2]
[373353649,1752964238669,-1000.0,0.00018904,2]
[373353651,1752964238679,-1000.0,0.00018904,2]
[373353653,1752964238690,-1000.0,0.00018904,2]
[373353655,1752964238699,-1000.0,0.00018904,2]
[373353657,1752964238708,-1000.0,0.00018904,2]
[373353659,1752964238717,-1000.0,0.00018904,2]
[373353661,1752964238726,-1000.0,0.00018904,2]
[373353663,1752964238736,-1000.0,0.00018904,2]
[373353665,1752964238746,-1000.0,0.00018904,2]
[373353667,1752964238755,-1000.0,0.00018904,2]
[373353669,1752964238764,-1000.0,0.00018904,2]
[373353671,1752964238772,-1000.0,0.00018904,2]
[373353673,1752964238781,-1000.0,0.00018904,2]
[373353675,1752964238791,-1000.0,0.00018904,2]
[373353676,1752964238800,-1000.0,0.00018904,2]
[373353678,1752964238809,-1000.0,0.00018904,2]
[373353680,1752964238818,-1000.0,0.00018904,2]
[373353682,1752964238827,-1000.0,0.00018904,2]
[373353684,1752964238836,-1000.0,0.00018904,2]
[373353686,1752964238846,-1000.0,0.00018904,2]
[373353687,1752964238854,-1000.0,0.00018904,2]
[373353688,1752964238863,-1000.0,0.00018904,2]
[373353689,1752964238872,-1000.0,0.00018904,2]
[373353690,1752964238881,-1000.0,0.00018904,2]
[373353691,1752964238890,-1000.0,0.00018904,2]
[373353692,1752964238899,-1000.0,0.00018904,2]
[373353693,1752964238909,-1000.0,0.00018904,2]
[373353694,1752964238918,-1000.0,0.00018904,2]
[373353695,1752964238927,-1000.0,0.00018904,2]
[373353696,1752964238936,-1000.0,0.00018904,2]
[373353697,1752964238946,-1000.0,0.00018904,2]
[373353698,1752964238955,-1000.0,0.00018904,2]
[373353699,1752964238964,-1000.0,0.00018904,2]
[373353700,1752964238973,-1000.0,0.00018904,2]
[373353702,1752964238982,-1000.0,0.00018904,2]
[373353704,1752964238993,-1000.0,0.00018904,2]
[373353706,1752964239002,-1000.0,0.00018904,2]
[373353707,1752964239011,-1000.0,0.00018904,2]
[373353709,1752964239021,-1000.0,0.00018904,2]
[373353711,1752964239031,-1000.0,0.00018904,2]
[373353713,1752964239040,-1000.0,0.00018904,2]
[373353715,1752964239049,-1000.0,0.00018904,2]
[373353717,1752964239059,-1000.0,0.00018904,2]
[373353719,1752964239068,-1000.0,0.00018904,2]
[373353721,1752964239077,-1000.0,0.00018904,2]
[373353723,1752964239086,-1000.0,0.00018904,2]
[373353725,1752964239096,-1000.0,0.00018904,2]
[373353727,1752964239105,-1000.0,0.00018904,2]
[373353729,1752964239114,-1000.0,0.00018904,2]
[373353731,1752964239123,-1000.0,0.00018904,2]
[373353733,1752964239133,-1000.0,0.00018904,2]
[373353735,1752964239142,-1000.0,0.00018904,2]
[373353737,1752964239151,-1000.0,0.00018904,2]
[373353739,1752964239160,-1000.0,0.00018904,2]
[373353741,1752964239169,-1000.0,0.00018904,2]
[373353744,1752964239179,-1000.0,0.00018904,2]
[373353746,1752964239188,-1000.0,0.00018904,2]
[373353748,1752964239198,-1000.0,0.00018904,2]
[373353750,1752964239208,-1000.0,0.00018904,2]
[373353752,1752964239217,-1000.0,0.00018904,2]
[373353753,1752964239227,-1000.0,0.00018904,2]
[373353756,1752964239236,-1000.0,0.00018904,2]
[373353757,1752964239246,-1000.0,0.00018904,2]
[373353760,1752964239255,-719.0799,0.00018904,2]
[373353761,1752964239264,-200.0,0.00018905,2]
[373353763,1752964239273,-5284.88982032,0.00018907,2]
[373353765,1752964239282,-200.0,0.00018909,2]
[373353767,1752964239291,-7836.39558307,0.0001891,2]
[373353769,1752964239305,-41137.75750043,0.00018914,2]
[373353772,1752964239314,-200.0,0.00018921,2]
[373353774,1752964239323,-41137.75750043,0.00018922,2]
[373353775,1752964239333,-216.92134962,0.00018927,2]
[373353777,1752964239343,-200.0,0.00018928,2]
[373353779,1752964239353,-200.0,0.00018931,2]
[373353781,1752964239363,-200.0,0.00018932,2]
[373353783,1752964239371,-7836.39558307,0.00018932,2]
[373353785,1752964239381,-7836.39558307,0.00018939,2]
[373353787,1752964239391,-200.0,0.00018947,2]
[373353789,1752964239401,-200.0,0.00018947,2]
[373353792,1752964239411,-5284.88982032,0.00018949,2]
[373353793,1752964239422,-5284.88982032,0.00018949,2]
[373353796,1752964239431,-200.0,0.0001895,2]
[373353797,1752964239441,-200.0,0.00018952,2]
[373353799,1752964239450,-200.0,0.00018954,2]
[373353801,1752964239460,-216.92134962,0.00018971,2]
[373353803,1752964239469,-171.76257112,0.00018973,2]
[373353806,1752964239478,-500.0,0.00018973,2]
[373353807,1752964239487,-500.0,0.00018973,2]
[373353809,1752964239497,-501.46488387,0.00018973,2]
[373353811,1752964239506,-500.0,0.00018973,2]
[373353813,1752964239515,-500.0,0.00018973,2]
[373353815,1752964239525,-167.67298565,0.00018973,2]
[373353818,1752964239534,-500.0,0.00018973,2]
[373353820,1752964239543,-500.0,0.00018973,2]
[373353822,1752964239552,-500.0,0.00018973,2]
[373353824,1752964239561,-200.0,0.00018978,2]
[373353825,1752964239570,-7635.80763351,0.00018979,2]
[373353828,1752964239580,-41137.75750043,0.00018981,2]
[373353830,1752964239588,-200.0,0.00018982,2]
[373353833,1752964239598,-200.0,0.00018984,2]
[373353835,1752964239607,-200.0,0.00018985,2]
[373353838,1752964239617,-1786.981,0.00018988,2]
[373353840,1752964239626,-162.718,0.00018988,2]
[373353842,1752964239635,-332.79278326,0.00018988,2]
[373353844,1752964239644,-194.7110876,0.00018989,2]
[373353846,1752964239654,-194.7110876,0.00018989,2]
[373353848,1752964239663,-176701.47250863,0.00018989,2]
[373353850,1752964239672,-6156.0,0.0001899,2]
[373353852,1752964239681,-159027.2436502,0.0001899,2]
[373353854,1752964239691,-4867.8975397,0.0001899,2]
[373353856,1752964239700,-19827.4470132,0.0001899,2]
[373353858,1752964239709,-610.529579,0.0001899,2]
[373353859,1752964239718,-500.0,0.0001899,2]
[373353861,1752964239728,-200.0,0.00018995,2]
[373353863,1752964239739,-300.0,0.00018998,2]
[373353865,1752964239749,-300.0,0.00018998,2]
[373353867,1752964239758,-1581.16426477,0.00018998,2]
[373353869,1752964239768,-500.0,0.00018998,2]
[373353871,1752964239777,-500.0,0.00018998,2]
[373353873,1752964239786,-3317.63,0.00018998,2]
[373353875,1752964239796,-500.0,0.00018998,2]
[373353877,1752964239805,-500.0,0.00018998,2]
[373353879,1752964239814,-150.0,0.00018998,2]
[373353881,1752964239823,-150.0,0.00018998,2]
[373353883,1752964239833,-500.0,0.00018998,2]
[373353885,1752964239842,-247.08116392,0.00018998,2]
[373353887,1752964239851,-500.0,0.00018998,2]
[373353889,1752964239860,-263.60314485,0.00018998,2]
[373353891,1752964239869,-500.0,0.00018998,2]
[373353893,1752964239878,-150.0,0.00018998,2]
[373353895,1752964239887,-237.18458635,0.00018998,2]
[373353897,1752964239898,-500.0,0.00018998,2]
[373353899,1752964239907,-223.10023967,0.00018998,2]
[373353901,1752964239916,-150.0,0.00018998,2]
[373353903,1752964239927,-150.0,0.00018998,2]
[373353905,1752964239936,-732.0,0.00018998,2]
[373353907,1752964239946,-500.0,0.00018998,2]
[373353909,1752964239956,-4113.0,0.00018998,2]
[373353911,1752964239966,-500.0,0.00018998,2]
[373353913,1752964239975,-150.0,0.00018998,2]
[373353916,1752964239990,-500.0,0.00018998,2]
[373353918,1752964239999,-150.0,0.00018998,2]
[373353920,1752964240008,-150.0,0.00018998,2]
[373353922,1752964240018,-150.0,0.00018998,2]
[373353924,1752964240027,-150.0,0.00018998,2]
[373353926,1752964240036,-300.0,0.00018998,2]
[373353928,1752964240047,-556.0,0.00018999,2]
[373353930,1752964240056,-300.0,0.00018999,2]
[373353932,1752964240066,-3433075.29758532,0.00018999,2]
[373353936,1752964240092,-5679.4304461,0.00018999,2]
[373353938,1752964240104,-528.0396859,0.00018999,2]
[373353984,1752964240536,-156.57979175,0.000189,2]
[373353986,1752964240546,-619.16870825,0.00018999,2]
[373353989,1752964240562,-254.584656,0.00018999,2]
[373353991,1752964240574,-860.0,0.00018999,2]
[373354005,1752964240694,-511.42436462,0.00018999,2]
[373354007,1752964240711,-765.48307329,0.00018999,2]
[373354021,1752964240832,-942155.88964101,0.00018999,2]
[373354024,1752964240849,-3900.37995451,0.00018999,2]
[373354026,1752964240861,-730.00847715,0.00018999,2]
[373354028,1752964240872,-7242.30090271,0.00018999,2]
[373354198,1752964242687,-3199.80550772,0.00018999,2]
[373354200,1752964242699,-3472.17010711,0.00018999,2]
[373354202,1752964242710,-2355.4,0.00018999,2]
[373354284,1752964243478,-897.13769105,0.00018999,2]
[373354511,1752964245726,-3915.56595268,0.00018999,2]
[373354513,1752964245738,-5901.87714632,0.00018999,2]
[373354520,1752964245794,-1408.82174182,0.00018999,2]
[373354527,1752964245854,-1425.81886794,0.00018999,2]
[373354530,1752964245868,-347.14482896,0.00018999,2]
[373354536,1752964245917,-7166.40000001,0.00018999,2]
[373354538,1752964245928,-934697.86641606,0.00018999,2]
[373354544,1752964245983,-5337.3080512,0.00018999,2]
[373355632,1752964261897,250.0,0.00015,2]
[373355636,1752964573232,1000.0,0.00015,2]
[373355637,1752964996156,229.08,0.00024727,120]
[373355639,1752965383946,1418.10346116,0.00025,120]
[373355640,1752965432172,-513.0,0.00016848,2]
[373355641,1752965432182,-300.0,0.00017,2]
[373355642,1752965432191,-240.0,0.000175,2]
[373355643,1752965432200,-985.66349,0.00017836,2]
[373355644,1752965432209,-193.56,0.00017926,2]
[373355645,1752965432219,-229.08,0.00017984,2]
[373355646,1752965432228,-1000.0,0.00018066,2]
[373355647,1752965432237,-495.35,0.00018329,2]
[373355648,1752965432247,-464.8,0.00018369,2]
[373355649,1752965432256,-299.94,0.00018431,2]
[373355650,1752965432265,-291.929044,0.00018619,2]
[373355651,1752965432274,-1200.0,0.00018629,2]
[373355652,1752965432283,-300.0,0.00018629,2]
[373355653,1752965432292,-300.0,0.00018629,2]
[373355654,1752965432300,-6845.87,0.0001863,2]
[373355655,1752965432309,-235.0,0.0001878,2]
[373355656,1752965432318,-207.4,0.00018793,2]
[373355657,1752965432327,-14472.3189,0.00018804,2]
[373355658,1752965432336,-200.0,0.00018847,2]
[373355659,1752965432346,-597.7735783,0.00018858,2]
[373355660,1752965432356,-321.26339751,0.00018899,2]
[373355661,1752965432366,-187.19350383,0.000189,2]
[373355662,1752965432375,-5000.0,0.000189,2]
[373355663,1752965432384,-156.40093219,0.000189,2]
[373355664,1752965432393,-1534.95649035,0.00018941,2]
[373355665,1752965432403,-321.2633975,0.00018968,2]
[373355666,1752965432412,-1735.603,0.00018968,2]
[373355667,1752965432421,-163.618,0.00018968,2]
[373355668,1752965432430,-501.45890469,0.00018973,2]
[373355669,1752965432440,-513.05691528,0.00018973,2]
[373355670,1752965432449,-500.0,0.00018973,2]
[373355671,1752965432458,-500.0,0.00018973,2]
[373355672,1752965432467,-161.2874668,0.00018973,2]
[373355673,1752965432476,-600.0,0.00018979,2]
[373355674,1752965432485,-15953.1638668,0.0001899,2]
[373355675,1752965432494,-491.2320992,0.0001899,2]
[373355676,1752965432503,-3863.942252,0.0001899,2]
[373355677,1752965432513,-12.78336275,0.00018998,2]
[373355678,1752965432535,-487.21663725,0.00018998,2]
[373355679,1752965432544,-386.09946765,0.00018998,2]
[373355680,1752965432553,-170.51399335,0.00018998,2]
[373355681,1752965432562,-90.9099018,0.00018998,2]
[373355682,1752965432609,-252.74481147,0.00018998,2]
[373355683,1752965432618,-333.99067732,0.00018998,2]
[373355684,1752965432627,-7390.37224998,0.00018999,2]
[373355685,1752965432642,-2636.6366294,0.00018999,2]
[373355686,1752965432670,-5508.0,0.00018999,2]
[373355695,1752965437846,-2595.5295332,0.00018999,2]
[373355709,1752965438301,-2973.318348,0.00018999,2]
[373355713,1752965439805,-280.65825627,0.00018999,2]
[373355714,1752965439817,-19456.24604978,0.00018999,2]
[373355715,1752965439829,-1178.08,0.00018999,2]
[373355716,1752965439840,-6983.84199683,0.00018999,2]
[373355717,1752965439851,-27198.76363956,0.00018999,2]
[373355718,1752965439867,-430.635566,0.00018999,2]
[373355720,1752965440259,-567338.54524482,0.00018999,2]
[373355721,1752965440268,-5465.06246097,0.00018999,2]
[373355722,1752965440278,-1486.61886122,0.00018999,2]
[373355723,1752965440288,-326.81439111,0.00018999,2]
[373355724,1752965440297,-446.17417955,0.00018999,2]
[373355725,1752965440306,-200.0,0.00018999,2]
[373355726,1752965440316,-1210.0,0.00018999,2]
[373355727,1752965440325,-1210.0,0.00018999,2]
[373355728,1752965440334,-1210.0,0.00018999,2]
[373355729,1752965440344,-1210.0,0.00018999,2]
[373355730,1752965440353,-1210.0,0.00018999,2]
[373355731,1752965440363,-1210.0,0.00018999,2]
[373355732,1752965440373,-1210.0,0.00018999,2]
[373355733,1752965440383,-1210.0,0.00018999,2]
[373355734,1752965440392,-1210.0,0.00018999,2]
[373355735,1752965440402,-1210.0,0.00018999,2]
[373355736,1752965440411,-1210.0,0.00018999,2]
[373355737,1752965440421,-1210.0,0.00018999,2]
[373355738,1752965440430,-1210.0,0.00018999,2]
[373355739,1752965440440,-1210.0,0.00018999,2]
[373355740,1752965440449,-1210.0,0.00018999,2]
[373355741,1752965440459,-1210.0,0.00018999,2]
[373355742,1752965440471,-1210.0,0.00018999,2]
[373355743,1752965440483,-1210.0,0.00018999,2]
[373355744,1752965440492,-1210.0,0.00018999,2]
[373355745,1752965440502,-1210.0,0.00018999,2]
[373355746,1752965440511,-1210.0,0.00018999,2]
[373355747,1752965440520,-1210.0,0.00018999,2]
[373355748,1752965440530,-1210.0,0.00018999,2]
[373355749,1752965440539,-1210.0,0.00018999,2]
[373355750,1752965440548,-1210.0,0.00018999,2]
[373355751,1752965440557,-1210.0,0.00018999,2]
[373355752,1752965440567,-1210.0,0.00018999,2]
[373355753,1752965440576,-1210.0,0.00018999,2]
[373355754,1752965440585,-906.80080915,0.00018999,2]
[373355755,1752965440594,-1317.43254,0.00018999,2]
[373355756,1752965440603,-564.13921931,0.00019,2]
[373355757,1752965440612,-1176.14139361,0.00019,2]
[373355758,1752965440622,-395.90581961,0.00019,2]
[373355759,1752965440631,-534.77710958,0.00019,2]
[373355760,1752965440640,-206770.97421142,0.00019,2]
[373355761,1752965440649,-121346.50340066,0.00019,2]
[373355774,1752965442785,-4136.4910003,0.00019,2]
[373355779,1752965445869,-1131.70890012,0.00019,2]
[373355780,1752965445930,-3401.7999999,0.00019,2]
[373355781,1752965445992,-471.95184101,0.00019,2]
[373355782,1752965446004,-24065.23659343,0.00019,2]
[373355783,1752965446016,-513.1828002,0.00019,2]
[373355785,1752965628481,402.61,0.00013699,2]
[373355788,1752965951457,10000.0,0.00015203,2]
[373355792,1752966632004,-513.0,0.00015545,2]
[373355793,1752966632014,-976.165489,0.00017412,2]
[373355794,1752966632023,-221.0,0.000175,2]
[373355795,1752966632032,-250.0,0.00017821,2]
[373355796,1752966632041,-1200.0,0.00017831,2]
[373355797,1752966632050,-23900.0,0.00017832,2]
[373355798,1752966632060,-640.85,0.00017859,2]
[373355799,1752966632071,-5678.82,0.00017927,2]
[373355800,1752966632080,-166.93,0.00017927,2]
[373355801,1752966632090,-692.7,0.00017969,2]
[373355802,1752966632099,-118.50951624,0.0001802,2]
[373355803,1752966632116,-11911.06048376,0.0001802,2]
[373355804,1752966632125,-285.97966185,0.0001804,2]
[373355805,1752966632136,-1566.44033815,0.0001804,2]
[373355806,1752966632145,-207.4,0.00018048,2]
[373355807,1752966632155,-168.49,0.00018056,2]
[373355808,1752966632165,-1000.0,0.00018141,2]
[373355809,1752966632174,-513.0,0.0001816,5]
[373355810,1752966632185,-396.28,0.00018329,2]
[373355811,1752966632195,-500.0,0.00018329,2]
[373355812,1752966632204,-150.0,0.00018399,2]
[373355813,1752966632213,-150.0,0.00018409,2]
[373355814,1752966632223,-200.0,0.000185,6]
[373355815,1752966632232,-500.0,0.000186,6]
[373355816,1752966632242,-800.0,0.000187,6]
[373355817,1752966632251,-150.0,0.0001873,2]
[373355818,1752966632260,-217.0,0.0001878,2]
[373355819,1752966632269,-318.01200182,0.000188,6]
[373355820,1752966632280,-781.98799818,0.000188,6]
[373355821,1752966632291,-150.0,0.00018807,2]
[373355822,1752966632299,-42.12561747,0.00018822,2]
[373355823,1752966632315,-107.87438253,0.00018822,2]
[373355824,1752966632327,-150.0,0.00018829,2]
[373355825,1752966632336,-42.26539047,0.00018847,2]
[373355826,1752966632348,-693.83700682,0.00018847,2]
[373355827,1752966632358,-175.0,0.00018854,2]
[373355828,1752966632367,-185.13810453,0.00018857,2]
[373355829,1752966632377,-200.0,0.00018869,2]
[373355831,1752966632386,-158.22,0.00018878,2]
[373355833,1752966632396,-941.24529,0.00018887,2]
[373355834,1752966632405,-941.24529,0.00018896,2]
[373355835,1752966632414,-1400.0,0.000189,6]
[373355836,1752966632424,-941.24529,0.00018938,2]
[373355837,1752966632434,-243.274203,0.0001894,2]
[373355838,1752966632443,-150.0,0.00018953,2]
[373355839,1752966632452,-200.0,0.00018971,2]
[373355840,1752966632462,-200.0,0.00018973,2]
[373355841,1752966632471,-600.0,0.00018978,2]
[373355843,1752966632480,-1485.01509314,0.00018978,2]
[373355846,1752966632504,-169.95790686,0.00018978,2]
[373355848,1752966632513,-163.618,0.00018978,2]
[373355850,1752966632523,-6008.64783623,0.0001898,2]
[373355852,1752966632532,-153.38415748,0.0001898,2]
[373355853,1752966632541,-158.19,0.00018987,2]
[373355854,1752966632550,-163.79095191,0.00019,2]
[373355856,1752966632560,-4042.57463148,0.00019,2]
[373355857,1752966632574,-500.0,0.00019,2]
[373355859,1752966632583,-500.0,0.00019,2]
[373355861,1752966632591,-150.0,0.00019,2]
[373355862,1752966632601,-150.0,0.00019,2]
[373355863,1752966632611,-150.0,0.00019,2]
[373355864,1752966632620,-500.0,0.00019,2]
[373355865,1752966632629,-150.0,0.00019,2]
[373355866,1752966632638,-150.0,0.00019,2]
[373355867,1752966632650,-1486.61886122,0.00019,2]
[373355868,1752966632660,-326.81439111,0.00019,2]
[373355869,1752966632669,-150.0,0.00019,2]
[373355870,1752966632678,-500.0,0.00019,2]
[373355871,1752966632688,-150.0,0.00019,2]
[373355872,1752966632697,-150.0,0.00019,2]
[373355873,1752966632706,-500.0,0.00019,2]
[373355874,1752966632715,-150.0,0.00019,2]
[373355875,1752966632724,-500.0,0.00019,2]
[373355876,1752966632734,-500.0,0.00019,2]
[373355877,1752966632743,-500.0,0.00019,2]
[373355878,1752966632752,-500.0,0.00019,2]
[373355879,1752966632761,-150.0,0.00019,2]
[373355880,1752966632771,-150.0,0.00019,2]
[373355881,1752966632780,-546.0,0.00019,2]
[373355882,1752966632789,-500.0,0.00019,2]
[373355883,1752966632798,-150.0,0.00019,2]
[373355884,1752966632807,-500.0,0.00019,2]
[373355885,1752966632817,-500.0,0.00019,2]
[373355886,1752966632829,-150.0,0.00019,2]
[373355887,1752966632838,-150.0,0.00019,2]
[373355888,1752966632847,-150.0,0.00019,2]
[373355889,1752966632856,-3942.0,0.00019,2]
[373355890,1752966632866,-500.0,0.00019,2]
[373355891,1752966632875,-1957.0,0.00019,2]
[373355892,1752966632884,-150.0,0.00019,2]
[373355894,1752966633152,-500.0,0.00019,2]
[373355895,1752966633163,-150.0,0.00019,2]
[373355896,1752966633173,-1410.31693,0.00019,2]
[373355897,1752966633183,-150.0,0.00019,2]
[373355898,1752966633191,-150.0,0.00019,2]
[373355899,1752966633201,-202.03918273,0.00019,2]
[373355900,1752966633211,-500.0,0.00019,2]
[373355901,1752966633222,-500.0,0.00019,2]
[373355902,1752966633232,-1046.0,0.00019,2]
[373355903,1752966633243,-3179.4,0.00019002,2]
[373355904,1752966633253,-2000.0,0.00019002,2]
[373355905,1752966633264,-2000.0,0.00019002,2]
[373355906,1752966633274,-78376.30257055,0.00019003,2]
[373355907,1752966633326,-7596.93087625,0.00019003,2]
[373355908,1752966633336,-568.0631773,0.00019003,2]
[373355909,1752966633347,-1615.4514957,0.00019003,2]
[373355910,1752966633357,-396.28,0.00019016,2]
[373355911,1752966633368,-4553.57445461,0.0001904,2]
[373355918,1752966638309,-1227.59217501,0.0001904,2]
[373355919,1752966638321,-227.48120657,0.0001904,2]
[373355920,1752966638331,-163.40719556,0.0001904,2]
[373355921,1752966638340,-743.30943061,0.0001904,2]
[373355922,1752966638349,-424.6592977,0.0001904,2]
[373356144,1752966640423,-500.0,0.00019,2]
[373356147,1752966640433,-318.65013291,0.0001904,2]
[373356150,1752966640442,-1139.85198663,0.00019059,2]
[373356153,1752966640451,-187.19350383,0.00019065,2]
[373356156,1752966640461,-500.0,0.00019073,2]
[373356159,1752966640470,-168.0,0.00019075,2]
[373356163,1752966640479,-5578.95108773,0.00019078,2]
[373356166,1752966640489,-167.57559022,0.00019079,2]
[373356169,1752966640501,-149.85187533,0.00019079,2]
[373356172,1752966640510,-1182.54990755,0.00019079,7]
[373356175,1752966640519,-2000.0,0.00019079,2]
[373356178,1752966640528,-2000.0,0.00019079,2]
[373356181,1752966640538,-3614.81701185,0.0001908,2]
[373356185,1752966640550,-8943.78386462,0.0001908,2]
[373356188,1752966640561,-9077.54866152,0.0001908,2]
[373356191,1752966640579,-8943.84023489,0.0001908,2]
[373356194,1752966640599,-374817.34439619,0.0001908,2]
[373356196,1752966640611,-701.88806397,0.0001908,2]
[373356198,1752966640622,-562.9805228,0.0001908,2]
[373356201,1752966640643,-600.65,0.0001908,2]
[373356204,1752966640654,-2485.26039119,0.0001908,2]
[373356441,1752966643004,-150.0,0.00019,2]
[373356443,1752966643014,-150.0,0.00019,2]
[373356445,1752966643024,-6.32726025,0.0001908,2]
[373356474,1752966643195,-1143.08681688,0.0001908,2]
[373356488,1752966643310,-12764.40646324,0.0001908,2]
[373356492,1752966643342,-3034.77342942,0.0001908,2]
[373356762,1752966646084,-681.0,0.00019,2]
[373356764,1752966646093,-276.10999925,0.0001908,2]
[373356787,1752966646298,-200088.36708471,0.0001908,2]
[373356789,1752966646307,-151.0,0.0001908,2]
[373356790,1752966646316,-151.807381,0.0001908,2]
[373356793,1752966646326,-1055.72000471,0.0001908,2]
[373356795,1752966646340,-151.0,0.0001908,2]
[373356797,1752966646350,-163.40719555,0.0001908,2]
[373356799,1752966646359,-151.0,0.00019082,2]
[373356801,1752966646368,-158.19,0.00019097,2]
[373356803,1752966646378,-293.51675833,0.00019099,2]
[373356805,1752966646387,-431.27659265,0.00019099,2]
[373356807,1752966646396,-262.38066662,0.00019099,2]
[373356808,1752966646405,-6008.64783619,0.00019099,2]
[373356811,1752966646415,-29194.0,0.000191,2]
[373356813,1752966646425,-6008.64783619,0.00019159,2]
[373356815,1752966646435,-96683.22456477,0.00019165,2]
[373356819,1752966646463,-1183.8000015,0.00019165,2]
[373359447,1752966731615,397.68,0.00013699,2]
[373359449,1752967019602,315.15645857,0.000211,28]
[373359484,1752967832271,-512.0,0.0001616,2]
[373359486,1752967832282,-300.0,0.00016999,2]
[373359487,1752967832292,-1200.0,0.00016999,2]
[373359488,1752967832302,-1448.22668828,0.00017,2]
[373359489,1752967832365,-27987.00144337,0.00017,2]
[373359490,1752967832378,-10468.8,0.00017,2]
[373359491,1752967832389,-7382.376725,0.00017,2]
[373359492,1752967832400,-1849.78174631,0.00017,2]